bitfinex/quotes_SOLUSD_20250718
["timestamp","ask_amount","ask_price","bid_price","bid_amount"]
[1752797064513,2.2398,176.7,176.59,30.23]
[1752797064514,5.65972173,176.69,176.6,0.71]
[1752797064701,7.89914715,176.7,176.6,0.71]
[1752797064906,7.89914715,176.7,176.62,26.0]
[1752797065104,1.5698,176.7,176.63,29.52]
[1752797065296,7.89916217,176.7,176.64,0.71]
[1752797065610,0.67,176.69,176.65,29.52]
[1752797066107,7.22916217,176.7,176.66,0.71]
[1752797066986,7.89916217,176.7,176.65,29.52]
[1752797067188,7.89916217,176.7,176.65,30.23]
[1752797069708,12.09447639,176.71,176.66,0.71]
[1752797070007,5.65873041,176.72,176.67,0.71]
[1752797070185,5.65873041,176.72,176.65,35.18087046]
[1752797070385,5.65873041,176.72,176.68,0.71]
[1752797070610,5.65840179,176.73,176.69,30.21]
[1752797070784,5.65840179,176.73,176.69,30.19]
[1752797071104,0.06,176.7,176.69,46.26468397]
[1752797071312,0.06,176.7,176.69,16.78468397]
[1752797071493,0.06,176.7,176.69,46.99468397]
[1752797071693,0.06,176.7,176.69,0.71]
[1752797071988,0.06,176.7,176.69,30.19]
[1752797072207,0.06,176.7,176.69,35.84962986]
[1752797072406,0.06,176.7,176.64,14.33063554]
[1752797072407,0.06,176.7,176.64,8.07233554]
[1752797072716,0.06,176.7,176.68,0.71]
[1752797073099,0.06,176.7,176.69,30.19]
[1752797074117,0.06,176.7,176.69,29.48]
[1752797074314,0.06,176.7,176.69,30.19]
[1752797075397,0.06,176.7,176.69,0.71]
[1752797075603,0.06,176.7,176.69,30.19]
[1752797075994,0.06,176.7,176.69,52.63431383]
[1752797076200,1.6462,176.8,176.73,26.0]
[1752797076399,1.6462,176.8,176.74,29.48]
[1752797076605,1.6462,176.8,176.75,0.71]
[1752797076800,11.83592849,176.81,176.76,0.71]
[1752797077021,6.1801,176.81,176.77,30.19]
[1752797077242,11.8358986,176.81,176.77,30.19]
[1752797078239,11.8358986,176.81,176.7,18.37928397]
[1752797078240,0.67,176.8,176.73,26.71]
[1752797078406,0.67,176.8,176.74,29.48]
[1752797079313,5.65642853,176.79,176.74,29.48]
[1752797079605,5.65618889,176.8,176.75,0.71]
[1752797079851,0.67,176.79,176.74,29.48]
[1752797080117,5.65618889,176.8,176.75,0.71]
[1752797080421,6.32618889,176.8,176.75,0.71]
[1752797080623,5.65618889,176.8,176.74,35.13794038]
[1752797080827,1.6304,176.85,176.76,0.71]
[1752797081005,1.6304,176.85,176.77,29.44]
[1752797081327,6.32507462,176.84,176.78,29.44]
[1752797081627,0.67,176.83,176.78,29.44]
[1752797082423,5.65546883,176.82,176.78,29.44]
[1752797082810,6.32546883,176.82,176.78,29.44]
[1752797083231,5.65546883,176.82,176.78,30.15]
[1752797083411,5.65482922,176.84,176.78,30.15]
[1752797083611,5.65482922,176.84,176.79,0.71]
[1752797083811,6.32482922,176.84,176.79,0.71]
[1752797084006,5.65482922,176.84,176.78,29.44]
[1752797084222,5.65482922,176.84,176.8,0.71]
[1752797084915,6.32482922,176.84,176.78,35.80669577]
[1752797085118,7.28496627,176.85,176.79,0.71]
[1752797086716,7.28496627,176.85,176.79,6.36640809]
[1752797088243,1.6304,176.85,176.79,6.36640809]
[1752797088739,2.178,176.89,176.8,0.71]
[1752797088942,7.83133577,176.89,176.8,0.71]
[1752797089836,7.83133577,176.89,176.81,5.65578869]
[1752797090043,7.83133577,176.89,176.82,30.13]
[1752797090928,7.83133577,176.89,176.82,35.78522104]
[1752797091131,0.67,176.88,176.79,5.65642853]
[1752797091338,0.67,176.88,176.8,29.4]
[1752797091936,0.67,176.88,176.8,30.11]
[1752797092438,1.508,176.89,176.81,0.71]
[1752797092742,6.0918,176.9,176.81,0.71]
[1752797092944,5.65231614,176.92,176.82,19.79414092]
[1752797093116,5.65231614,176.92,176.83,0.72]
[1752797093443,2.178,176.93,176.84,29.4]
[1752797093845,2.178,176.93,176.85,0.72]
[1752797094242,1.508,176.93,176.85,0.72]
[1752797095147,6.0918,176.94,176.86,19.78966413]
[1752797095445,0.73,176.97,176.87,0.72]
[1752797096540,0.06,176.97,176.88,29.4]
[1752797096844,0.06,176.97,176.89,0.72]
[1752797097348,0.06,176.97,176.9,5.65291124]
[1752797097644,0.06,176.97,176.91,0.72]
[1752797099249,0.06,176.97,176.92,5.65227221]
[1752797099444,0.06,176.97,176.93,30.08]
[1752797100226,0.73,176.97,176.9,0.72]
[1752797100427,0.06,176.97,176.91,0.72]
[1752797101332,0.73,176.97,176.89,26.0]
[1752797101547,1.5094,176.96,176.88,6.37349594]
[1752797101748,1.5094,176.96,176.84,0.72]
[1752797101749,16.78468397,176.94,176.84,0.72]
[1752797102054,6.8692,176.95,176.82,5.65542239]
[1752797102055,0.67,176.93,176.82,5.65542239]
[1752797102241,0.67,176.93,176.84,0.72]
[1752797102442,0.67,176.93,176.82,6.37542239]
[1752797102745,16.78468397,176.92,176.82,0.72]
[1752797102937,2.1711,176.91,176.81,5.65576419]
[1752797103140,5.65291124,176.9,176.81,5.65576419]
[1752797103355,6.6021,176.88,176.78,35.05650832]
[1752797103672,0.67,176.87,176.78,35.77650832]
[1752797103837,0.67,176.87,176.79,0.72]
[1752797104236,0.67,176.87,176.78,35.05650832]
[1752797104434,0.67,176.87,176.77,5.65700829]
[1752797104633,0.67,176.87,176.77,32.37700829]
[1752797104835,0.67,176.87,176.77,6.37700829]
[1752797105055,0.67,176.87,176.77,32.37700829]
[1752797105354,5.65418975,176.86,176.78,0.72]
[1752797105655,0.67,176.85,176.78,0.72]
[1752797106747,5.65395586,176.87,176.78,6.37650511]
[1752797106952,6.32395586,176.87,176.79,0.72]
[1752797107560,0.67,176.86,176.79,0.72]
[1752797107855,1.5271,176.85,176.77,26.0]
[1752797108033,0.67,176.84,176.76,0.72]
[1752797108233,0.67,176.84,176.76,6.37728681]
[1752797108460,0.67,176.84,176.75,0.72]
[1752797108640,5.65514901,176.83,176.74,35.05773693]
[1752797108840,0.67,176.82,176.75,0.72]
[1752797110255,5.65578869,176.81,176.75,6.37764261]
[1752797110648,45.22380378,176.85,176.76,0.72]
[1752797110649,28.1971,176.85,176.76,0.72]
[1752797110835,2.1971,176.85,176.76,0.72]
[1752797111841,2.1971,176.85,176.76,6.37707335]
[1752797111842,5.65489223,176.84,176.76,6.37707335]
[1752797112166,7.85165188,176.85,176.77,0.72]
[1752797112347,0.67,176.84,176.77,0.72]
[1752797112856,0.67,176.84,176.75,5.65764357]
[1752797113062,0.67,176.84,176.74,30.12]
[1752797113258,30.23,176.84,176.74,30.12]
[1752797113456,0.67,176.83,176.74,30.12]
[1752797114063,5.65546883,176.82,176.74,35.77791299]
[1752797114453,5.65517422,176.83,176.75,0.72]
[1752797114970,6.32517422,176.83,176.75,0.72]
[1752797115464,5.65492253,176.84,176.75,0.72]
[1752797115766,0.67,176.83,176.75,0.72]
[1752797116347,5.65546883,176.82,176.76,5.65738854]
[1752797116875,2.1971,176.85,176.77,0.72]
[1752797117044,1.5271,176.85,176.77,0.72]
[1752797117459,21.31790982,176.85,176.77,0.72]
[1752797117749,0.67,176.84,176.77,0.72]
[1752797118673,5.65514901,176.83,176.77,0.72]
[1752797119647,0.67,176.82,176.75,6.37760927]
[1752797120764,6.3256563,176.82,176.75,6.37760927]
[1752797122064,5.65488147,176.84,176.76,0.72]
[1752797123072,6.34488147,176.84,176.76,0.72]
[1752797124070,6.34488147,176.84,176.77,5.6570685]
[1752797124372,0.69,176.83,176.76,0.72]
[1752797124665,0.69,176.83,176.76,6.37737227]
[1752797125249,7.85685039,176.92,176.8,1.5293]
[1752797125444,7.85685039,176.92,176.81,30.23]
[1752797125650,7.85685039,176.92,176.82,0.71]
[1752797126057,7.85685039,176.92,176.83,5.65514901]
[1752797126376,7.85685039,176.92,176.84,0.71]
[1752797127487,7.85685039,176.92,176.85,5.65450947]
[1752797128456,7.16685039,176.92,176.84,6.36473026]
[1752797128758,0.69,176.91,176.84,6.36473026]
[1752797129549,5.65291124,176.9,176.84,6.36473026]
[1752797130655,0.69,176.89,176.82,0.71]
[1752797131664,0.69,176.89,176.81,35.17573031]
[1752797131856,16.78468397,176.9,176.82,0.71]
[1752797132424,16.78468397,176.88,176.78,0.71]
[1752797132558,16.78468397,176.84,176.72,1.6045]
[1752797132755,16.78468397,176.84,176.73,0.71]
[1752797132756,16.78468397,176.82,176.73,0.71]
[1752797132955,16.78468397,176.82,176.73,26.71]
[1752797133200,16.78468397,176.82,176.74,0.71]
[1752797133496,0.69,176.83,176.74,0.71]
[1752797134064,5.65450947,176.85,176.74,0.71]
[1752797134574,5.65514901,176.83,176.74,0.71]
[1752797134772,17.47468397,176.82,176.71,5.6589893]
[1752797134958,0.69,176.81,176.71,6.3689893]
[1752797135291,16.78468397,176.8,176.71,6.3689893]
[1752797135502,0.69,176.79,176.71,6.3689893]
[1752797136096,5.6567485,176.78,176.71,6.3689893]
[1752797136592,5.6567485,176.78,176.74,26.0]
[1752797136781,6.3467485,176.78,176.74,26.0]
[1752797137390,6.3467485,176.78,176.72,0.71]
[1752797138269,6.3467485,176.78,176.72,6.36865277]
[1752797138704,6.3467485,176.78,176.72,0.71]
[1752797140401,17.47468397,176.77,176.68,0.71]
[1752797140576,0.69,176.76,176.68,0.71]
[1752797141369,5.65770862,176.75,176.68,0.71]
[1752797141577,0.69,176.75,176.68,6.3698984]
[1752797142596,6.34776325,176.75,176.69,0.71]
[1752797143104,5.65742061,176.76,176.69,0.71]
[1752797143274,6.34742061,176.76,176.69,0.71]
[1752797144302,6.34742061,176.76,176.69,6.36946366]
[1752797144483,19.09558397,176.75,176.64,0.71]
[1752797144679,16.78468397,176.73,176.64,0.71]
[1752797144882,46.18468397,176.73,176.64,0.71]
[1752797145091,0.69,176.72,176.64,0.71]
[1752797145393,5.6589893,176.71,176.64,0.71]
[1752797145770,6.3489893,176.71,176.64,0.71]
[1752797146499,0.69,176.7,176.64,0.71]
[1752797147498,6.34961026,176.7,176.64,0.71]
[1752797147898,14.1455642,176.74,176.64,0.71]
[1752797147899,0.69,176.74,176.64,6.3711529]
[1752797148111,7.27870485,176.75,176.65,30.09]
[1752797148395,6.6618,176.79,176.66,0.71]
[1752797148571,6.6618,176.79,176.68,26.0]
[1752797148769,6.6618,176.79,176.69,0.71]
[1752797148995,0.69,176.78,176.69,0.71]
[1752797149180,16.78468397,176.77,176.69,0.71]
[1752797149382,0.69,176.77,176.69,0.71]
[1752797149598,0.69,176.77,176.69,6.36953664]
[1752797149773,6.6618,176.79,176.69,6.36953664]
[1752797149774,6.3467485,176.78,176.7,0.71]
[1752797150180,0.69,176.77,176.7,0.71]
[1752797150883,6.34735921,176.77,176.7,0.71]
[1752797151089,6.34735921,176.77,176.7,6.36922658]
[1752797151992,0.69,176.77,176.7,6.36922658]
[1752797152198,2.3552,176.8,176.71,0.71]
[1752797152677,8.01138722,176.8,176.71,0.71]
[1752797152879,8.01138722,176.8,176.72,5.65866908]
[1752797153098,8.01138722,176.8,176.68,55.54]
[1752797153099,17.45468397,176.79,176.68,61.889679]
[1752797153292,0.67,176.78,176.68,61.889679]
[1752797153799,16.78468397,176.77,176.68,30.23]
[1752797154001,16.78468397,176.75,176.68,29.54]
[1752797154302,16.78468397,176.73,176.63,0.69]
[1752797154804,0.67,176.72,176.63,0.69]
[1752797154979,5.6589893,176.71,176.63,6.35152477]
[1752797155379,0.67,176.7,176.63,6.35152477]
[1752797155980,5.65962986,176.69,176.63,6.35152477]
[1752797156904,5.65962986,176.69,176.63,6.38152477]
[1752797157079,5.65962986,176.69,176.63,0.72]
[1752797158889,5.65962986,176.69,176.63,6.38149535]
[1752797159298,6.32939784,176.7,176.63,6.38149535]
[1752797159490,7.24244857,176.71,176.64,0.69]
[1752797160205,17.45468397,176.7,176.63,0.03]
[1752797160585,0.67,176.69,176.63,0.03]
[1752797161090,5.65995019,176.68,176.63,0.03]
[1752797161391,0.67,176.67,176.63,0.03]
[1752797161796,0.67,176.66,176.63,0.03]
[1752797162301,0.67,176.65,176.63,0.03]
[1752797162681,0.67,176.64,176.63,0.03]
[1752797162895,17.45468397,176.64,176.63,0.03]
[1752797163089,16.78468397,176.63,176.62,0.03]
[1752797163303,22.44623636,176.63,176.55,30.03]
[1752797163499,0.67,176.62,176.55,30.03]
[1752797164504,0.67,176.62,176.55,0.03]
[1752797164893,0.67,176.62,176.55,6.38402914]
[1752797165086,0.67,176.62,176.55,0.03]
[1752797165087,16.78468397,176.59,176.55,0.03]
[1752797165290,6.33315551,176.58,176.55,0.03]
[1752797165687,0.67,176.57,176.55,0.03]
[1752797166194,0.67,176.56,176.55,0.03]
[1752797166615,6.33315551,176.58,176.55,0.03]
[1752797167310,6.3665,176.6,176.55,0.72]
[1752797167505,7.0365,176.6,176.55,0.72]
[1752797167693,12.69902458,176.6,176.55,0.72]
[1752797168595,7.0365,176.6,176.55,6.38407383]
[1752797168793,12.69909421,176.6,176.55,0.72]
[1752797169197,7.0365,176.6,176.55,6.38407949]
[1752797169411,58.51229227,176.64,176.56,0.69]
[1752797169412,0.67,176.63,176.56,0.69]
[1752797170115,25.01478397,176.64,176.56,0.69]
[1752797170293,30.67602626,176.64,176.56,0.69]
[1752797170498,13.89134229,176.64,176.56,0.69]
[1752797171505,14.56134229,176.64,176.57,5.66347624]
[1752797174691,16.78468397,176.66,176.58,0.69]
[1752797174899,17.45468397,176.67,176.58,0.69]
[1752797175095,0.67,176.65,176.55,0.03]
[1752797175712,0.67,176.65,176.55,0.72]
[1752797176219,30.11,176.65,176.55,0.72]
[1752797176422,6.33123188,176.64,176.55,6.38390357]
[1752797176617,0.67,176.63,176.55,6.38390357]
[1752797178125,5.66187294,176.62,176.55,6.38390357]
[1752797179411,16.78468397,176.58,176.55,0.03]
[1752797179609,16.78468397,176.55,176.52,0.2]
[1752797180029,16.78468397,176.53,176.52,0.2]
[1752797180209,42.78468397,176.53,176.52,1e-08]
[1752797180416,72.87468397,176.53,176.52,1e-08]
[1752797180615,80.43508397,176.53,176.52,1e-08]
[1752797181331,86.0998435,176.53,176.52,1e-08]
[1752797184416,86.1398435,176.53,176.52,1e-08]
[1752797186108,86.1398435,176.53,176.37,1e-08]
[1752797186109,33.91,176.49,176.37,1e-08]
[1752797186311,26.0,176.5,176.24,0.69]
[1752797186312,26.0,176.39,176.24,0.69]
[1752797186620,1.5054,176.34,176.26,2.96045004]
[1752797186827,1.5054,176.34,176.24,0.69]
[1752797186828,29.88,176.33,176.24,0.69]
[1752797187022,0.7,176.33,176.25,0.69]
[1752797187215,4.87562944,176.32,176.25,0.69]
[1752797187418,4.17562944,176.31,176.25,0.69]
[1752797187618,5.67247149,176.29,176.22,0.69]
[1752797187915,5.67247149,176.29,176.2,5.87519988]
[1752797187916,4.86753434,176.28,176.2,0.89]
[1752797188120,4.16753434,176.27,176.21,0.69]
[1752797188330,14.17824389,176.33,176.21,0.69]
[1752797188331,26.7,176.33,176.23,26.0]
[1752797188526,56.56,176.37,176.24,0.69]
[1752797188748,4.16029769,176.36,176.25,32.6546]
[1752797188914,31.66929584,176.39,176.25,32.6546]
[1752797189120,31.66929584,176.39,176.26,0.69]
[1752797189915,31.66929584,176.39,176.27,19.85590286]
[1752797190124,31.66929584,176.39,176.3,26.0]
[1752797190319,31.66929584,176.39,176.31,0.69]
[1752797190515,31.66929584,176.39,176.3,26.0]
[1752797190516,0.7,176.38,176.3,26.0]
[1752797190720,26.0,176.35,176.25,0.69]
[1752797191026,6.0667,176.3,176.2,0.2]
[1752797191226,30.58,176.29,176.2,0.2]
[1752797191425,0.7,176.28,176.2,0.2]
[1752797192236,6.37279521,176.28,176.2,6.5652928]
[1752797194124,6.37279521,176.28,176.2,0.89]
[1752797194827,0.7,176.27,176.2,0.2]
[1752797195017,26.0,176.25,176.2,0.2]
[1752797195222,0.7,176.24,176.2,0.2]
[1752797195433,0.7,176.23,176.2,0.2]
[1752797195632,0.7,176.22,176.2,0.2]
[1752797195924,26.0,176.26,176.2,0.2]
[1752797196263,16.78468397,176.24,176.2,0.2]
[1752797196852,26.0,176.26,176.2,0.2]
[1752797197153,16.78468397,176.25,176.21,0.69]
[1752797197758,16.78468397,176.25,176.2,0.2]
[1752797197937,16.78468397,176.25,176.2,0.89]
[1752797198865,23.15846103,176.25,176.2,0.89]
[1752797199161,0.7,176.24,176.2,0.2]
[1752797199345,0.7,176.23,176.2,0.2]
[1752797199852,16.78468397,176.21,176.2,0.2]
[1752797200354,0.7,176.21,176.2,0.2]
[1752797201070,16.78468397,176.24,176.2,0.2]
[1752797201353,0.7,176.23,176.2,0.2]
[1752797204336,16.78468397,176.24,176.2,0.89]
[1752797204571,16.78468397,176.25,176.2,5.87527715]
[1752797204857,16.78468397,176.25,176.21,0.69]
[1752797205057,35.49312461,176.27,176.21,0.69]
[1752797205058,29.82,176.27,176.21,6.36489156]
[1752797205263,16.78468397,176.26,176.21,6.36489156]
[1752797205560,16.78468397,176.27,176.22,0.69]
[1752797205941,16.78468397,176.27,176.23,0.69]
[1752797206565,16.78468397,176.28,176.23,0.69]
[1752797207057,17.48468397,176.28,176.23,0.69]
[1752797207262,17.48468397,176.28,176.21,5.67504161]
[1752797207263,0.7,176.27,176.21,5.67504161]
[1752797207859,0.7,176.27,176.21,6.36504161]
[1752797208565,16.78468397,176.28,176.21,6.36504161]
[1752797209444,16.78468397,176.28,176.21,5.67504161]
[1752797209654,16.78468397,176.28,176.22,0.69]
[1752797210375,16.78468397,176.28,176.23,5.67440276]
[1752797210548,16.78468397,176.28,176.24,0.69]
[1752797210747,26.0,176.32,176.24,0.69]
[1752797210969,16.78468397,176.31,176.24,0.69]
[1752797211172,26.0,176.32,176.24,0.69]
[1752797211173,16.78468397,176.32,176.24,0.69]
[1752797212454,16.78468397,176.32,176.25,5.67375886]
[1752797212654,16.78468397,176.32,176.26,0.7]
[1752797214549,36.3725,176.35,176.27,5.6731151]
[1752797214749,16.78468397,176.34,176.28,0.7]
[1752797214986,0.72,176.35,176.28,0.7]
[1752797215280,33.31006979,176.37,176.28,0.7]
[1752797215281,16.78468397,176.36,176.28,0.7]
[1752797215650,16.78468397,176.37,176.3,26.0]
[1752797215969,16.78468397,176.37,176.31,0.7]
[1752797216271,16.78468397,176.37,176.27,19.85590286]
[1752797216440,0.72,176.36,176.28,0.7]
[1752797216645,16.78468397,176.34,176.27,5.6731151]
[1752797216957,16.78468397,176.34,176.28,0.7]
[1752797217370,0.72,176.36,176.28,0.7]
[1752797217371,6.39031859,176.36,176.28,0.7]
[1752797217874,0.72,176.35,176.28,0.7]
[1752797218167,16.78468397,176.34,176.24,35.47398519]
[1752797218369,0.72,176.33,176.24,35.47398519]
[1752797218543,0.72,176.33,176.24,29.8]
[1752797218544,18.38398397,176.32,176.24,29.8]
[1752797218744,16.78468397,176.27,176.21,5.67497412]
[1752797219053,26.0,176.28,176.2,0.2]
[1752797219054,16.78468397,176.25,176.2,0.2]
[1752797219252,16.78468397,176.25,176.2,30.2]
[1752797219548,16.78468397,176.23,176.2,30.2]
[1752797219851,0.72,176.22,176.2,0.2]
[1752797220248,17.50468397,176.22,176.21,30.0]
[1752797220953,16.78468397,176.23,176.21,30.0]
[1752797221570,0.72,176.22,176.21,30.0]
[1752797221777,0.72,176.22,176.2,0.2]
[1752797221977,16.78468397,176.23,176.2,0.2]
[1752797222275,26.72,176.21,176.2,0.2]
[1752797222848,32.39504681,176.21,176.2,0.2]
[1752797223769,16.78468397,176.21,176.2,0.2]
[1752797224278,16.78468397,176.25,176.2,0.2]
[1752797224569,16.78468397,176.23,176.2,0.2]
[1752797224975,22.4591013,176.23,176.2,0.2]
[1752797225161,23.1791013,176.23,176.2,0.2]
[1752797225785,17.50468397,176.23,176.2,0.2]
[1752797227287,16.78468397,176.23,176.2,0.2]
[1752797227509,26.0,176.26,176.2,5.87513928]
[1752797227672,16.78468397,176.26,176.21,0.7]
[1752797228376,17.50468397,176.26,176.2,5.87513928]
[1752797228592,17.50468397,176.26,176.2,0.2]
[1752797228768,23.17816564,176.26,176.2,5.87528657]
[1752797229302,23.17816564,176.26,176.21,30.0]
[1752797229884,16.78468397,176.26,176.22,0.7]
[1752797230069,16.78468397,176.26,176.21,30.0]
[1752797230271,16.78468397,176.26,176.22,0.7]
[1752797230490,16.78468397,176.26,176.22,30.7]
[1752797230988,0.72,176.25,176.22,30.0]
[1752797231489,26.0,176.27,176.23,0.7]
[1752797231880,26.0,176.27,176.21,5.67504681]
[1752797231881,16.78468397,176.26,176.21,5.67504681]
[1752797232088,16.78468397,176.26,176.21,0.7]
[1752797232286,0.72,176.25,176.2,0.2]
[1752797232470,16.78468397,176.26,176.2,0.9]
[1752797232672,16.78468397,176.26,176.21,0.7]
[1752797232873,22.45819661,176.26,176.21,0.7]
[1752797233197,23.17819661,176.26,176.21,0.7]
[1752797234090,16.78468397,176.26,176.22,0.7]
[1752797234292,26.0,176.27,176.22,30.0]
[1752797234601,0.06,176.3,176.23,0.7]
[1752797234994,0.06,176.3,176.24,5.67408079]
[1752797235304,0.06,176.3,176.25,0.7]
[1752797236295,0.72,176.29,176.22,0.7]
[1752797237109,5.6731151,176.27,176.22,0.7]
[1752797237282,6.3931151,176.27,176.22,0.7]
[1752797237713,17.50468397,176.26,176.21,29.92]
[1752797237995,0.72,176.25,176.2,0.2]
[1752797238416,16.78468397,176.23,176.2,0.2]
[1752797238786,47.42640286,176.27,176.2,0.2]
[1752797238787,33.9636151,176.27,176.21,0.7]
[1752797239206,33.9636151,176.27,176.21,6.37495437]
[1752797239514,17.50468397,176.26,176.2,0.2]
[1752797240614,17.50468397,176.26,176.2,5.87532584]
[1752797241101,16.78468397,176.26,176.21,0.7]
[1752797241307,16.78468397,176.26,176.21,5.67496907]
[1752797241608,16.78468397,176.26,176.22,0.7]
[1752797242183,5.67335829,176.27,176.22,0.7]
[1752797242383,16.78468397,176.27,176.23,0.7]
[1752797243388,5.67314569,176.27,176.21,5.67496907]
[1752797244011,5.67314569,176.27,176.21,6.33496907]
[1752797246119,5.67314569,176.27,176.21,0.66]
[1752797246313,5.67314569,176.27,176.21,0.69]
[1752797246614,26.72,176.26,176.21,0.03]
[1752797247021,26.0,176.26,176.21,0.03]
[1752797247215,0.72,176.25,176.21,0.03]
[1752797247893,26.0,176.26,176.21,0.69]
[1752797248218,31.67373379,176.26,176.21,0.69]
[1752797248522,32.39373379,176.26,176.21,0.69]
[1752797248707,26.72,176.26,176.21,0.69]
[1752797249094,5.67319663,176.27,176.22,0.66]
[1752797249297,22.45726303,176.29,176.23,30.66]
[1752797249625,187.3409098,176.3,176.24,0.66]
[1752797250522,187.3409098,176.3,176.24,36.33388779]
[1752797250696,187.3409098,176.3,176.24,30.66]
[1752797250899,187.3409098,176.3,176.24,36.33399703]
[1752797251114,174.36,176.3,176.25,0.66]
[1752797251306,26.06,176.3,176.25,0.66]
[1752797251516,0.06,176.3,176.25,0.66]
[1752797251913,0.06,176.3,176.24,35.67399703]
[1752797252121,0.06,176.3,176.26,0.66]
[1752797252311,0.06,176.3,176.27,0.66]
[1752797253410,0.06,176.3,176.27,6.33304184]
[1752797253800,0.06,176.3,176.28,0.66]
[1752797254414,0.78,176.3,176.25,0.66]
[1752797254623,6.45242944,176.3,176.25,0.66]
[1752797254810,0.72,176.29,176.24,5.67408079]
[1752797255224,0.72,176.29,176.25,30.0]
[1752797255713,0.72,176.28,176.25,30.0]
[1752797256025,0.72,176.27,176.25,30.0]
[1752797256721,56.99902093,176.26,176.25,30.0]
[1752797256920,86.85902093,176.26,176.25,30.0]
[1752797257538,101.04261335,176.26,176.21,0.03]
[1752797257729,16.78468397,176.24,176.21,0.03]
[1752797258235,0.72,176.23,176.21,0.03]
[1752797258619,0.72,176.22,176.21,0.03]
[1752797258821,17.50468397,176.22,176.21,0.03]
[1752797260631,23.17940874,176.22,176.21,0.03]
[1752797261530,23.17940874,176.22,176.2,0.2]
[1752797261837,16.78468397,176.17,176.13,0.03]
[1752797262236,46.62468397,176.17,176.13,0.03]
[1752797262413,47.34468397,176.17,176.13,0.03]
[1752797262619,5.67697984,176.15,176.13,0.03]
[1752797263122,29.97,176.13,176.12,0.03]
[1752797264334,29.97,176.12,176.11,0.69]
[1752797266338,29.97,176.12,176.11,6.36826926]
[1752797266529,29.97,176.12,176.11,0.69]
[1752797266933,29.97,176.12,176.11,0.03]
[1752797271948,29.97,176.12,176.11,0.69]
[1752797272644,29.97,176.12,176.11,56.49]
[1752797272939,29.97,176.12,176.11,62.16826926]
[1752797273148,29.97,176.12,176.11,36.16826926]
[1752797274144,29.97,176.12,176.11,30.49]
[1752797274728,29.97,176.12,176.11,29.83]
[1752797275942,29.97,176.12,176.11,0.03]
[1752797277627,36.30794685,176.12,176.11,0.03]
[1752797277831,53.09263082,176.12,176.11,0.03]
[1752797278228,108.87263082,176.12,176.11,0.03]
[1752797279126,79.09263082,176.12,176.11,0.03]
[1752797279338,108.87263082,176.12,176.11,0.03]
[1752797280145,16.78468397,176.11,176.1,0.03]
[1752797280349,47.44468397,176.11,176.1,0.03]
[1752797280858,46.78468397,176.11,176.1,0.03]
[1752797281027,30.0,176.11,176.1,0.03]
[1752797281224,30.0,176.11,176.1,0.75]
[1752797282334,30.0,176.11,176.1,0.03]
[1752797282529,36.33826926,176.11,176.1,0.03]
[1752797282733,53.12295323,176.11,176.1,0.03]
[1752797283049,79.12295323,176.11,176.1,0.03]
[1752797283241,53.12295323,176.11,176.1,0.03]
[1752797285749,79.12295323,176.11,176.1,0.03]
[1752797286152,227.42295323,176.11,176.1,0.03]